fUST/lending_fUST_20241203
["ID","MTS","AMOUNT","RATE_DAILY","PERIOD"]
[344012551,1733199046677,-1746.87070715,0.00020611,2]
[344012552,1733199046686,-839.12930285,0.00020635,2]
[344012560,1733199114767,28370.13416272,0.0002,2]
[344012563,1733199274183,161.750048,0.00013973,2]
[344012571,1733199563165,2000.0,0.00026,60]
[344012572,1733199870134,166.461296,0.00013973,2]
[344012575,1733200000142,-163.76364791,0.00018141,2]
[344012576,1733200121447,1631.42833615,0.00015,7]
[344012619,1733200231829,-2587.88669494,0.00017851,2]
[344012620,1733200231841,-406.31117534,0.00017851,2]
[344012626,1733200237853,-1088.28014082,0.00017851,2]
[344012627,1733200237863,-608.79724,0.00017942,2]
[344012628,1733200237873,-300.0,0.00018106,2]
[344012629,1733200237883,-300.0,0.00018106,2]
[344012630,1733200237893,-13778.4664562,0.00018107,2]
[344012631,1733200237903,-86.23635209,0.00018141,2]
[344012632,1733200237913,-403.12849705,0.00018815,2]
[344012633,1733200237928,-9819.49079395,0.00018815,2]
[344012634,1733200237937,-207.17,0.00018935,2]
[344012636,1733200237946,-944.15239163,0.00018945,2]
[344012637,1733200237956,-7848.1462952,0.00018945,2]
[344012638,1733200237970,-17051.8537048,0.00018945,2]
[344012639,1733200237979,-1263.10274933,0.00019073,2]
[344012640,1733200237989,-1582.9362917,0.00019172,2]
[344012641,1733200237998,-292.0668906,0.00019178,11]
[344012642,1733200238007,-8865.78017939,0.0001926,2]
[344012643,1733200238017,-8865.78017939,0.00019482,2]
[344012644,1733200238028,-420.0,0.00019753,2]
[344012645,1733200238038,-8865.78017939,0.00019762,2]
[344012646,1733200238049,-195.35542666,0.00019837,2]
[344012647,1733200238059,-996.10010099,0.000199,2]
[344012648,1733200238068,-420.0,0.00019916,2]
[344012649,1733200238078,-500.74660377,0.00019973,2]
[344012650,1733200238087,-500.62551465,0.00019973,2]
[344012651,1733200238097,-513.73402035,0.00019973,2]
[344012652,1733200238106,-500.0,0.00019973,2]
[344012653,1733200238115,-374.96339222,0.00019973,2]
[344012654,1733200238125,-501.83189523,0.00019973,2]
[344012655,1733200238135,-500.0,0.00019973,2]
[344012656,1733200238145,-507.31647996,0.00019973,2]
[344012657,1733200238154,-500.7026176,0.00019973,2]
[344012658,1733200238164,-500.53577371,0.00019973,2]
[344012659,1733200238173,-171.99199537,0.00019973,2]
[344012660,1733200238183,-157.060061,0.00019973,2]
[344012661,1733200238192,-210.57,0.00019988,3]
[344012662,1733200238201,-266.42294036,0.00019997,2]
[344012663,1733200238211,-318.24791359,0.00019997,2]
[344012664,1733200238220,-500.0,0.00019997,2]
[344012665,1733200238231,-267.26487907,0.00019997,2]
[344012666,1733200238240,-584.04771199,0.00019997,2]
[344012667,1733200238250,-500.0,0.00019997,2]
[344012668,1733200238260,-500.0,0.00019997,2]
[344012669,1733200238270,-500.0,0.00019997,2]
[344012670,1733200238280,-500.0,0.00019997,2]
[344012671,1733200238290,-500.0,0.00019997,2]
[344012672,1733200238301,-500.0,0.00019997,2]
[344012673,1733200238311,-500.0,0.00019997,2]
[344012674,1733200238321,-500.0,0.00019997,2]
[344012675,1733200238330,-500.0,0.00019997,2]
[344012676,1733200238340,-500.0,0.00019997,2]
[344012677,1733200238350,-169.7435593,0.00019997,2]
[344012678,1733200238362,-500.0,0.00019997,2]
[344012679,1733200238372,-500.0,0.00019997,2]
[344012680,1733200238381,-500.0,0.00019997,2]
[344012681,1733200238391,-518.76124394,0.00019997,2]
[344012682,1733200238401,-500.0,0.00019997,2]
[344012683,1733200238411,-192.34450777,0.00019997,2]
[344012684,1733200238421,-500.0,0.00019997,2]
[344012685,1733200238519,-500.0,0.00019997,2]
[344012686,1733200238529,-441.15009151,0.00019997,2]
[344012687,1733200238539,-500.0,0.00019997,2]
[344012688,1733200238550,-500.0,0.00019997,2]
[344012689,1733200238560,-500.0,0.00019997,2]
[344012690,1733200238570,-553.44018145,0.00019997,2]
[344012691,1733200238579,-500.0,0.00019997,2]
[344012692,1733200238589,-500.0,0.00019997,2]
[344012693,1733200238599,-423.64777105,0.00019997,2]
[344012694,1733200238608,-500.0,0.00019997,2]
[344012695,1733200238618,-500.0,0.00019997,2]
[344012696,1733200238627,-500.0,0.00019997,2]
[344012697,1733200238637,-500.0,0.00019997,2]
[344012698,1733200238647,-500.0,0.00019997,2]
[344012699,1733200238656,-500.0,0.00019997,2]
[344012700,1733200238665,-500.0,0.00019997,2]
[344012701,1733200238675,-500.0,0.00019997,2]
[344012702,1733200238684,-500.0,0.00019997,2]
[344012703,1733200238694,-341.15811249,0.00019997,2]
[344012704,1733200238703,-500.0,0.00019997,2]
[344012705,1733200238713,-500.0,0.00019997,2]
[344012706,1733200238723,-500.0,0.00019997,2]
[344012707,1733200238733,-500.0,0.00019997,2]
[344012708,1733200238742,-500.0,0.00019997,2]
[344012709,1733200238752,-500.0,0.00019997,2]
[344012710,1733200238762,-500.0,0.00019997,2]
[344012711,1733200238772,-528.26580956,0.00019997,2]
[344012712,1733200238782,-500.0,0.00019997,2]
[344012713,1733200238792,-500.0,0.00019997,2]
[344012714,1733200238803,-500.0,0.00019997,2]
[344012715,1733200238813,-500.0,0.00019997,2]
[344012716,1733200238822,-500.0,0.00019997,2]
[344012717,1733200238832,-500.0,0.00019997,2]
[344012718,1733200238842,-500.0,0.00019997,2]
[344012719,1733200238852,-500.0,0.00019997,2]
[344012720,1733200238861,-500.0,0.00019997,2]
[344012721,1733200238872,-500.0,0.00019997,2]
[344012722,1733200238882,-500.0,0.00019997,2]
[344012723,1733200238891,-500.0,0.00019997,2]
[344012724,1733200238901,-500.0,0.00019997,2]
[344012725,1733200238911,-500.0,0.00019997,2]
[344012726,1733200238921,-500.0,0.00019997,2]
[344012727,1733200238930,-500.0,0.00019997,2]
[344012728,1733200238940,-500.0,0.00019997,2]
[344012729,1733200238950,-500.0,0.00019997,2]
[344012730,1733200238960,-500.0,0.00019997,2]
[344012731,1733200238969,-500.0,0.00019997,2]
[344012732,1733200238979,-500.0,0.00019997,2]
[344012733,1733200238989,-500.0,0.00019997,2]
[344012734,1733200238999,-500.0,0.00019997,2]
[344012735,1733200239009,-500.0,0.00019997,2]
[344012736,1733200239019,-500.0,0.00019997,2]
[344012737,1733200239030,-500.0,0.00019997,2]
[344012738,1733200239040,-500.0,0.00019997,2]
[344012739,1733200239051,-500.0,0.00019997,2]
[344012740,1733200239061,-500.0,0.00019997,2]
[344012741,1733200239070,-500.0,0.00019997,2]
[344012742,1733200239081,-500.0,0.00019997,2]
[344012743,1733200239091,-500.0,0.00019997,2]
[344012744,1733200239100,-500.0,0.00019997,2]
[344012745,1733200239110,-500.0,0.00019997,2]
[344012746,1733200239120,-500.0,0.00019997,2]
[344012747,1733200239129,-600.0,0.00019997,2]
[344012748,1733200239139,-500.0,0.00019997,2]
[344012749,1733200239148,-500.0,0.00019997,2]
[344012750,1733200239158,-500.0,0.00019997,2]
[344012751,1733200239167,-500.0,0.00019997,2]
[344012752,1733200239177,-500.0,0.00019997,2]
[344012753,1733200239186,-500.0,0.00019997,2]
[344012754,1733200239196,-500.0,0.00019997,2]
[344012755,1733200239205,-500.0,0.00019997,2]
[344012756,1733200239215,-500.0,0.00019997,2]
[344012757,1733200239224,-500.0,0.00019997,2]
[344012758,1733200239235,-500.0,0.00019997,2]
[344012759,1733200239245,-500.0,0.00019997,2]
[344012760,1733200239256,-500.0,0.00019997,2]
[344012761,1733200239271,-500.0,0.00019997,2]
[344012762,1733200239283,-500.0,0.00019997,2]
[344012763,1733200239296,-500.0,0.00019997,2]
[344012764,1733200239308,-500.0,0.00019997,2]
[344012765,1733200239319,-500.0,0.00019997,2]
[344012766,1733200239330,-500.0,0.00019997,2]
[344012767,1733200239341,-500.0,0.00019997,2]
[344012768,1733200239351,-500.0,0.00019997,2]
[344012769,1733200239364,-500.0,0.00019997,2]
[344012770,1733200239379,-500.0,0.00019997,2]
[344012771,1733200239392,-500.0,0.00019997,2]
[344012772,1733200239403,-500.0,0.00019997,2]
[344012773,1733200239413,-500.0,0.00019997,2]
[344012774,1733200239422,-500.0,0.00019997,2]
[344012775,1733200239432,-10147.92755194,0.0002,2]
[344012776,1733200239476,-267.08017194,0.0002,2]
[344012777,1733200239790,-5924.37363554,0.0002,2]
[344012778,1733200239804,-5711.77447786,0.0002,2]
[344012779,1733200239814,-1169.27083333,0.0002,2]
[344012780,1733200239823,-364.22475414,0.00020146,2]
[344012816,1733200242835,-18.19596088,0.00020146,2]
[344012820,1733200242864,-8483.35946437,0.00020146,2]
[344012822,1733200242874,-172.2139961,0.00020282,2]
[344012824,1733200242883,-8865.78017942,0.00020431,2]
[344012826,1733200242892,-182.297146,0.00020521,2]
[344012828,1733200242902,-505.96194445,0.00020521,2]
[344012830,1733200242911,-347.01254061,0.00020521,2]
[344012832,1733200242921,-1263.1027493,0.00020706,2]
[344012834,1733200242930,-587.0,0.00021551,2]
[344012836,1733200242939,-587.0,0.00021908,2]
[344012839,1733200242949,-502.74483785,0.00021973,2]
[344012841,1733200242959,-219.24625609,0.00021981,7]
[344012842,1733200242968,-219.867549,0.00021986,7]
[344012844,1733200242978,-219.867549,0.00021986,7]
[344012846,1733200242987,-500.0,0.00021989,2]
[344012848,1733200242997,-500.0,0.00021989,2]
[344012850,1733200243006,-500.0,0.00021989,2]
[344012853,1733200243016,-500.0,0.00021989,2]
[344012854,1733200243025,-447.75777808,0.00021989,2]
[344012856,1733200243035,-172.413362,0.00022309,2]
[344012858,1733200243044,-1263.1027493,0.00022339,2]
[344012861,1733200243054,-996.10010099,0.00022551,2]
[344012863,1733200243063,-4246.25304818,0.00023,2]
[344012865,1733200243073,-2934.0,0.0002341,2]
[344012866,1733200243082,-823.0,0.00023512,2]
[344012869,1733200243091,-158.869611,0.00023562,2]
[344012871,1733200243100,-260.36473373,0.00023727,2]
[344012872,1733200243110,-202.46955612,0.00023727,2]
[344012874,1733200243119,-1263.1027493,0.00023972,2]
[344012876,1733200243128,-823.0,0.00024099,2]
[344012878,1733200243138,-200.0,0.00024658,2]
[344012880,1733200243147,-403.07275195,0.00024658,2]
[344012882,1733200243157,-500.0,0.00024973,2]
[344012884,1733200243166,-500.0,0.00024973,2]
[344012887,1733200243176,-500.0,0.00024973,2]
[344012888,1733200243185,-500.0,0.00024973,2]
[344012891,1733200243195,-500.0,0.00024973,2]
[344012893,1733200243206,-151.0,0.00024991,2]
[344012894,1733200243216,-152.799626,0.00024992,7]
[344012897,1733200243225,-151.0,0.00025,2]
[344012898,1733200243235,-219.867549,0.00025,7]
[344012899,1733200243245,-219.867549,0.00025,7]
[344012901,1733200243254,-60173.80686262,0.00025,2]
[344012902,1733200243263,-205543.0,0.00025,2]
[344012903,1733200243273,-21810.9101957,0.0002509,2]
[344012904,1733200243282,-996.10010099,0.00025203,2]
[344012905,1733200243292,-158.869611,0.00025305,2]
[344012907,1733200243301,-1000.0,0.00025521,2]
[344012908,1733200243311,-1000.0,0.00025521,2]
[344012909,1733200243321,-503.66614666,0.00025521,2]
[344012911,1733200243330,-503.13615899,0.00025521,2]
[344012913,1733200243340,-1263.1027493,0.00025606,2]
[344012914,1733200243349,-1152.0,0.00025651,2]
[344012915,1733200243360,-1152.0,0.00026509,2]
[344012916,1733200243371,-1500.0,0.00026522,2]
[344012917,1733200243380,-155.5351938,0.00026712,2]
[344012918,1733200243390,-608.79724,0.00026913,2]
[344012919,1733200243399,-461.3069,0.00026965,30]
[344012920,1733200243411,-158.869611,0.00027049,2]
[344012921,1733200243420,-1263.1027493,0.00027239,2]
[344012922,1733200243429,-501.82622799,0.00027373,2]
[344012923,1733200243439,-500.0,0.00027373,2]
[344012924,1733200243448,-219.867549,0.00027373,7]
[344012925,1733200243538,-219.867549,0.00027373,7]
[344012926,1733200243548,-1169.27083333,0.00027397,7]
[344012927,1733200243558,-1169.27083333,0.00027397,7]
[344012928,1733200243567,-1169.27083333,0.00027397,7]
[344012929,1733200243576,-500.0,0.00027397,7]
[344012930,1733200243586,-151.0,0.00027397,2]
[344012931,1733200243595,-162.986613,0.00027397,2]
[344012932,1733200243605,-510.90317769,0.00027397,7]
[344012933,1733200243614,-500.0,0.00027397,7]
[344012934,1733200243623,-500.0,0.00027397,7]
[344012935,1733200243632,-500.0,0.00027397,7]
[344012936,1733200243641,-504.65493037,0.00027397,7]
[344012937,1733200243651,-500.0,0.00027397,7]
[344012938,1733200243661,-502.17028053,0.00027397,7]
[344012939,1733200243670,-512.61766585,0.00027397,7]
[344012940,1733200243679,-503.67271447,0.00027397,7]
[344012941,1733200243689,-500.0,0.00027397,7]
[344012942,1733200243698,-506.00230223,0.00027397,7]
[344012943,1733200243707,-503.86712115,0.00027397,7]
[344012944,1733200243717,-505.71895162,0.00027397,7]
[344012945,1733200243727,-500.0,0.00027397,7]
[344012946,1733200243736,-501.70453379,0.00027397,7]
[344012947,1733200243746,-208.07236486,0.00027397,7]
[344012948,1733200243755,-500.0,0.00027397,7]
[344012949,1733200243764,-500.0,0.00027397,7]
[344012950,1733200243774,-500.0,0.00027397,7]
[344012951,1733200243783,-500.0,0.00027397,7]
[344012952,1733200243792,-219.867549,0.00027397,7]
[344012953,1733200243801,-219.867549,0.00027397,7]
[344012954,1733200243810,-219.867549,0.00027397,7]
[344012955,1733200243819,-219.867549,0.00027397,7]
[344012956,1733200243829,-505.77941421,0.00027397,7]
[344012957,1733200243838,-503.23145521,0.00027397,7]
[344012958,1733200243849,-502.41270163,0.00027397,7]
[344012959,1733200243858,-507.91249077,0.00027397,7]
[344012960,1733200243868,-500.0,0.00027397,7]
[344012961,1733200243877,-500.0,0.00027397,7]
[344012962,1733200243887,-500.0,0.00027397,7]
[344012963,1733200243896,-501.81406578,0.00027397,7]
[344012964,1733200243905,-608.37773608,0.00027397,7]
[344012965,1733200243915,-500.0,0.00027397,7]
[344012966,1733200243925,-500.0,0.00027397,7]
[344012967,1733200243934,-502.00657342,0.00027397,7]
[344012968,1733200243944,-500.0,0.00027397,7]
[344012969,1733200243953,-500.0,0.00027397,7]
[344012970,1733200243963,-500.0,0.00027397,7]
[344012971,1733200243974,-500.0,0.00027397,7]
[344012972,1733200243984,-500.0,0.00027397,7]
[344012973,1733200243993,-500.0,0.00027397,7]
[344012974,1733200244003,-500.0,0.00027397,7]
[344012975,1733200244012,-500.0,0.00027397,7]
[344012976,1733200244021,-500.0,0.00027397,7]
[344012977,1733200244031,-500.0,0.00027397,7]
[344012978,1733200244040,-507.81543614,0.00027397,7]
[344012979,1733200244049,-500.0,0.00027397,7]
[344012980,1733200244058,-989.55,0.00027397,7]
[344012981,1733200244067,-500.0,0.00027397,7]
[344012982,1733200244076,-398.06229134,0.00027397,7]
[344012983,1733200244085,-500.0,0.00027397,7]
[344012984,1733200244095,-500.0,0.00027397,2]
[344012985,1733200244104,-584.26349454,0.00027397,7]
[344012986,1733200244113,-500.0,0.00027397,7]
[344012987,1733200244123,-412.20578134,0.00027397,7]
[344012988,1733200244132,-500.0,0.00027397,7]
[344012989,1733200244141,-500.0,0.00027397,7]
[344012990,1733200244151,-500.0,0.00027397,7]
[344012991,1733200244160,-500.0,0.00027397,7]
[344012992,1733200244170,-601.80073297,0.00027397,7]
[344012993,1733200244179,-500.0,0.00027397,7]
[344012994,1733200244189,-500.0,0.00027397,7]
[344012995,1733200244199,-500.0,0.00027397,7]
[344012996,1733200244209,-575.05890326,0.00027397,7]
[344012997,1733200244218,-507.66520825,0.00027397,7]
[344012998,1733200244228,-500.0,0.00027397,7]
[344012999,1733200244238,-500.0,0.00027397,7]
[344013000,1733200244248,-512.30187972,0.00027397,7]
[344013001,1733200244258,-460.16060212,0.00027397,7]
[344013002,1733200244268,-500.0,0.00027397,7]
[344013003,1733200244278,-500.0,0.00027397,7]
[344013004,1733200244288,-500.0,0.00027397,2]
[344013005,1733200244298,-508.38575874,0.00027397,7]
[344013006,1733200244320,-504.57753507,0.00027397,7]
[344013007,1733200244330,-500.0,0.00027397,7]
[344013008,1733200244339,-502.17059234,0.00027397,7]
[344013009,1733200244350,-500.0,0.00027397,7]
[344013010,1733200244361,-187.68120251,0.00027397,7]
[344013011,1733200244376,-500.0,0.00027397,7]
[344013012,1733200244386,-500.0,0.00027397,7]
[344013013,1733200244398,-500.0,0.00027397,7]
[344013014,1733200244410,-500.0,0.00027397,7]
[344013015,1733200244419,-500.0,0.00027397,7]
[344013016,1733200244429,-500.0,0.00027397,7]
[344013017,1733200244442,-500.0,0.00027397,7]
[344013018,1733200244452,-500.0,0.00027397,7]
[344013019,1733200244461,-503.79691794,0.00027397,7]
[344013020,1733200244471,-500.0,0.00027397,7]
[344013021,1733200244481,-500.0,0.00027397,7]
[344013022,1733200244490,-503.84985988,0.00027397,7]
[344013023,1733200244500,-500.0,0.00027397,7]
[344013024,1733200244510,-500.0,0.00027397,7]
[344013025,1733200244519,-504.19243857,0.00027397,7]
[344013026,1733200244529,-524.70449399,0.00027397,7]
[344013027,1733200244538,-500.0,0.00027397,7]
[344013028,1733200244548,-500.0,0.00027397,7]
[344013029,1733200244557,-500.0,0.00027397,7]
[344013030,1733200244566,-500.0,0.00027397,7]
[344013031,1733200244578,-500.0,0.00027397,7]
[344013032,1733200244587,-692.27,0.00027397,7]
[344013033,1733200244596,-500.0,0.00027397,7]
[344013034,1733200244606,-500.0,0.00027397,7]
[344013035,1733200244615,-509.03813987,0.00027397,7]
[344013036,1733200244624,-500.0,0.00027397,7]
[344013037,1733200244634,-500.0,0.00027397,7]
[344013038,1733200244643,-289.73460127,0.00027397,7]
[344013039,1733200244652,-500.0,0.00027397,7]
[344013040,1733200244662,-500.0,0.00027397,7]
[344013041,1733200244671,-500.0,0.00027397,7]
[344013042,1733200244680,-500.0,0.00027397,7]
[344013043,1733200244691,-500.0,0.00027397,7]
[344013044,1733200244700,-168.0,0.00027397,7]
[344013045,1733200244709,-752.69,0.00027397,7]
[344013046,1733200244719,-500.0,0.00027397,7]
[344013047,1733200244728,-500.0,0.00027397,7]
[344013048,1733200244737,-619.43,0.00027397,7]
[344013049,1733200244747,-500.0,0.00027397,7]
[344013050,1733200244756,-638.36170052,0.00027397,7]
[344013051,1733200244765,-500.0,0.00027397,7]
[344013052,1733200244775,-501.87417045,0.00027397,7]
[344013053,1733200244784,-500.0,0.00027397,7]
[344013054,1733200244793,-516.65294677,0.00027397,7]
[344013055,1733200244811,-301.20036827,0.00027397,7]
[344013056,1733200244821,-443.09592783,0.00027397,7]
[344013057,1733200244830,-341.83109234,0.00027397,7]
[344013058,1733200244840,-500.0,0.00027397,7]
[344013059,1733200244849,-500.0,0.00027397,7]
[344013060,1733200244859,-500.0,0.00027397,7]
[344013061,1733200244868,-500.0,0.00027397,7]
[344013062,1733200244878,-500.0,0.00027397,7]
[344013063,1733200244887,-508.20619502,0.00027397,7]
[344013064,1733200244896,-500.0,0.00027397,7]
[344013065,1733200244905,-527.41205332,0.00027397,7]
[344013066,1733200244915,-500.0,0.00027397,7]
[344013067,1733200244924,-506.22303777,0.00027397,7]
[344013068,1733200244934,-525.22591799,0.00027397,7]
[344013069,1733200244943,-500.0,0.00027397,7]
[344013070,1733200244952,-500.0,0.00027397,7]
[344013071,1733200244962,-500.0,0.00027397,7]
[344013072,1733200244971,-507.65485763,0.00027397,7]
[344013073,1733200244980,-514.08651608,0.00027397,7]
[344013074,1733200244990,-500.0,0.00027397,7]
[344013075,1733200244999,-500.0,0.00027397,7]
[344013076,1733200245009,-753.45,0.00027397,7]
[344013077,1733200245019,-500.0,0.00027397,7]
[344013078,1733200245028,-500.0,0.00027397,7]
[344013079,1733200245037,-504.76254216,0.00027397,7]
[344013080,1733200245048,-504.41659092,0.00027397,7]
[344013081,1733200245058,-500.0,0.00027397,7]
[344013082,1733200245067,-500.0,0.00027397,7]
[344013083,1733200245076,-500.0,0.00027397,7]
[344013084,1733200245085,-500.0,0.00027397,7]
[344013085,1733200245094,-500.0,0.00027397,7]
[344013086,1733200245103,-500.0,0.00027397,7]
[344013087,1733200245113,-615.76,0.00027397,7]
[344013088,1733200245122,-3233.15,0.00027397,7]
[344013089,1733200245131,-517.75113017,0.00027397,7]
[344013090,1733200245140,-2246.13,0.00027397,7]
[344013091,1733200245149,-500.0,0.00027397,7]
[344013092,1733200245158,-500.0,0.00027397,7]
[344013093,1733200245168,-500.0,0.00027397,7]
[344013094,1733200245179,-504.46573301,0.00027397,7]
[344013095,1733200245189,-860.36,0.00027397,7]
[344013096,1733200245199,-500.0,0.00027397,7]
[344013097,1733200245208,-500.0,0.00027397,7]
[344013098,1733200245217,-500.0,0.00027397,7]
[344013100,1733200245227,-470.58859648,0.00027397,7]
[344013101,1733200245236,-500.0,0.00027397,7]
[344013102,1733200245245,-500.0,0.00027397,7]
[344013103,1733200245255,-500.0,0.00027397,7]
[344013104,1733200245264,-487.52306817,0.00027397,7]
[344013105,1733200245274,-500.0,0.00027397,7]
[344013106,1733200245283,-443.0592465,0.00027397,7]
[344013107,1733200245292,-508.82546765,0.00027397,7]
[344013108,1733200245312,-511.07196482,0.00027397,7]
[344013109,1733200245332,-504.88377426,0.00027397,7]
[344013110,1733200245349,-500.0,0.00027397,7]
[344013111,1733200245360,-503.20977461,0.00027397,7]
[344013112,1733200245374,-500.0,0.00027397,7]
[344013113,1733200245385,-500.0,0.00027397,7]
[344013114,1733200245395,-502.63699454,0.00027397,7]
[344013115,1733200245405,-500.0,0.00027397,7]
[344013116,1733200245419,-500.0,0.00027397,2]
[344013117,1733200245429,-501.65012556,0.00027397,2]
[344013118,1733200245442,-158.42949801,0.00027397,7]
[344013119,1733200245453,-500.0,0.00027397,7]
[344013120,1733200245462,-509.55556946,0.00027397,7]
[344013121,1733200245471,-513.81164724,0.00027397,7]
[344013122,1733200245481,-500.0,0.00027397,7]
[344013123,1733200245561,-500.0,0.00027397,7]
[344013124,1733200245571,-500.0,0.00027397,7]
[344013125,1733200245580,-260.8402453,0.00027397,7]
[344013126,1733200245590,-1130.97,0.00027397,7]
[344013127,1733200245599,-460.21344416,0.00027397,7]
[344013128,1733200245608,-500.0,0.00027397,7]
[344013129,1733200245618,-500.0,0.00027397,7]
[344013130,1733200245628,-500.0,0.00027397,7]
[344013131,1733200245638,-500.0,0.00027397,7]
[344013132,1733200245647,-504.23027651,0.00027397,7]
[344013133,1733200245657,-500.0,0.00027397,7]
[344013134,1733200245666,-500.0,0.00027397,7]
[344013135,1733200245676,-506.12779582,0.00027397,7]
[344013136,1733200245685,-500.0,0.00027397,7]
[344013137,1733200245694,-500.0,0.00027397,7]
[344013138,1733200245704,-500.0,0.00027397,7]
[344013139,1733200245713,-616.62780972,0.000275,2]
[344013140,1733200245723,-6666.0,0.00027571,2]
[344013141,1733200245732,-535.974871,0.000276,2]
[344013142,1733200245741,-155.784346,0.000276,16]
[344013143,1733200245750,-500.0,0.00027671,7]
[344013144,1733200245760,-500.0,0.00027671,7]
[344013145,1733200245769,-500.0,0.00027671,7]
[344013146,1733200245779,-508.85006222,0.00027671,7]
[344013147,1733200245788,-500.0,0.00027671,7]
[344013149,1733200245797,-514.49106174,0.00027671,7]
[344013151,1733200245810,-500.0,0.00027671,7]
[344013152,1733200245822,-500.0,0.00027671,7]
[344013153,1733200245831,-500.0,0.00027671,7]
[344013154,1733200245841,-219.867549,0.00027671,7]
[344013155,1733200245850,-219.867549,0.00027671,7]
[344013156,1733200245859,-219.867549,0.00027671,7]
[344013157,1733200245869,-219.867549,0.00027671,7]
[344013158,1733200245878,-500.0,0.00027671,7]
[344013159,1733200245887,-500.0,0.00027671,7]
[344013160,1733200245897,-260.67917674,0.00027671,7]
[344013161,1733200245906,-500.0,0.00027671,7]
[344013162,1733200245915,-500.0,0.00027671,7]
[344013163,1733200245924,-500.0,0.00027671,7]
[344013164,1733200245933,-500.0,0.00027671,7]
[344013165,1733200245942,-500.0,0.00027671,7]
[344013166,1733200245951,-500.0,0.00027671,7]
[344013167,1733200245960,-500.0,0.00027671,7]
[344013168,1733200245969,-500.0,0.00027671,7]
[344013169,1733200245978,-500.0,0.00027671,7]
[344013170,1733200245986,-500.0,0.00027671,7]
[344013171,1733200245995,-500.0,0.00027671,7]
[344013172,1733200246005,-500.0,0.00027671,7]
[344013173,1733200246014,-500.0,0.00027671,7]
[344013174,1733200246023,-989.55,0.00027671,7]
[344013175,1733200246033,-500.0,0.00027671,7]
[344013176,1733200246042,-500.0,0.00027671,7]
[344013177,1733200246053,-500.0,0.00027671,7]
[344013178,1733200246063,-500.0,0.00027671,7]
[344013179,1733200246073,-500.0,0.00027671,7]
[344013180,1733200246082,-500.0,0.00027671,7]
[344013181,1733200246091,-295.6404789,0.00027671,7]
[344013182,1733200246100,-500.0,0.00027671,7]
[344013183,1733200246110,-500.0,0.00027671,7]
[344013184,1733200246119,-551.5593513,0.00027671,7]
[344013185,1733200246128,-500.0,0.00027671,7]
[344013186,1733200246138,-500.0,0.00027671,7]
[344013187,1733200246147,-500.0,0.00027671,7]
[344013188,1733200246157,-507.14478991,0.00027671,2]
[344013189,1733200246166,-500.0,0.00027671,7]
[344013190,1733200246176,-500.0,0.00027671,7]
[344013191,1733200246185,-500.0,0.00027671,7]
[344013192,1733200246195,-500.0,0.00027671,7]
[344013193,1733200246204,-500.0,0.00027671,7]
[344013194,1733200246213,-500.0,0.00027671,7]
[344013195,1733200246222,-418.05551068,0.00027671,7]
[344013196,1733200246232,-500.0,0.00027671,7]
[344013197,1733200246241,-500.0,0.00027671,7]
[344013198,1733200246249,-500.0,0.00027671,7]
[344013199,1733200246259,-500.0,0.00027671,7]
[344013200,1733200246268,-500.0,0.00027671,7]